[Event "NJSK 2026 Jeugd B"]
[Site "Helmond, Netherlands"]
[Date "2026.04.29"]
[Round "5.8"]
[White "Darie, Aden"]
[Black "Winter, Sven"]
[Result "0-1"]
[TimeControl "90min/40moves + 30min + 30sec/move"]
[WhiteTitle "-"]
[BlackTitle "-"]
[WhiteFideId "1094831"]
[BlackFideId "1092375"]
[WhiteElo "2150"]
[BlackElo "2013"]

1. e4 {[%clk 01:30:47]} {[%emt 00:00:11]} c6 {[%clk 01:30:30]} {[%emt
00:00:31]} 2. d4 {[%clk 01:30:59]} {[%emt 00:00:18]} d5 {[%clk 01:30:51]}
{[%emt 00:00:08]} 3. e5 {[%clk 01:31:18]} {[%emt 00:00:11]} c5 {[%clk
01:31:09]} {[%emt 00:00:14]} 4. dxc5 {[%clk 01:30:55]} {[%emt 00:00:53]} e6
{[%clk 01:30:56]} {[%emt 00:00:43]} 5. Qh5 {[%clk 01:31:09]} {[%emt 00:00:14]}
g6 {[%clk 01:28:18]} {[%emt 00:03:09]} 6. Qh3 {[%clk 01:31:02]} {[%emt
00:00:36]} Nc6 {[%clk 01:27:16]} {[%emt 00:01:33]} 7. Nf3 {[%clk 01:31:23]}
{[%emt 00:00:09]} f6 {[%clk 01:24:39]} {[%emt 00:03:08]} 8. Bb5 {[%clk
01:23:40]} {[%emt 00:08:11]} Bg7 {[%clk 01:20:24]} {[%emt 00:04:46]} 9. Bf4
{[%clk 01:19:26]} {[%emt 00:04:43]} Qa5+ {[%clk 01:15:29]} {[%emt 00:05:26]} 10.
Nc3 {[%clk 01:19:47]} {[%emt 00:00:09]} Qb4 {[%clk 01:15:25]} {[%emt 00:00:34]}
11. Bd2 {[%clk 01:01:19]} {[%emt 00:18:58]} Qxc5 {[%clk 01:14:38]} {[%emt
00:01:18]} 12. Qg3 {[%clk 00:56:52]} {[%emt 00:04:56]} fxe5 {[%clk 01:10:16]}
{[%emt 00:04:52]} 13. Nxe5 {[%clk 00:55:25]} {[%emt 00:01:57]} Nge7 {[%clk
01:09:54]} {[%emt 00:00:51]} 14. Bxc6+ {[%clk 00:46:13]} {[%emt 00:09:43]} bxc6
{[%clk 01:08:33]} {[%emt 00:01:52]} 15. Nd3 {[%clk 00:43:59]} {[%emt 00:02:42]}
Qb6 {[%clk 01:07:52]} {[%emt 00:01:12]} 16. Qd6 {[%clk 00:41:20]} {[%emt
00:03:09]} Nf5 {[%clk 01:06:58]} {[%emt 00:01:24]} 17. Qa3 {[%clk 00:41:46]}
{[%emt 00:00:05]} Nd4 {[%clk 01:03:07]} {[%emt 00:04:20]} 18. O-O-O {[%clk
00:40:57]} {[%emt 00:01:18]} Bf8 {[%clk 00:59:30]} {[%emt 00:04:08]} 19. Qa4
{[%clk 00:41:20]} {[%emt 00:00:06]} Bg7 {[%clk 00:42:33]} {[%emt 00:17:29]} 20.
Qa3 {[%clk 00:40:17]} {[%emt 00:01:34]} Qa6 {[%clk 00:35:24]} {[%emt 00:07:39]}
21. Na4 {[%clk 00:36:51]} {[%emt 00:03:56]} Qc4 {[%clk 00:22:29]} {[%emt
00:13:25]} 22. Nc3 {[%clk 00:32:56]} {[%emt 00:04:25]} Bf8 {[%clk 00:19:42]}
{[%emt 00:03:16]} 23. Qa5 {[%clk 00:32:38]} {[%emt 00:00:48]} Qa6 {[%clk
00:19:04]} {[%emt 00:01:08]} 24. Qc7 {[%clk 00:32:04]} {[%emt 00:01:04]} Qb7
{[%clk 00:17:51]} {[%emt 00:01:44]} 25. Qf4 {[%clk 00:27:23]} {[%emt 00:05:11]}
Bg7 {[%clk 00:16:38]} {[%emt 00:01:43]} 26. Ne5 {[%clk 00:27:24]} {[%emt
00:00:29]} Nf5 {[%clk 00:11:58]} {[%emt 00:05:10]} 27. g4 {[%clk 00:23:58]}
{[%emt 00:03:56]} Nd6 {[%clk 00:11:05]} {[%emt 00:01:22]} 28. Na4 {[%clk
00:21:01]} {[%emt 00:03:28]} Rf8 {[%clk 00:09:39]} {[%emt 00:01:56]} 29. Qe3
{[%clk 00:20:51]} {[%emt 00:00:40]} Qb5 {[%clk 00:08:33]} {[%emt 00:01:36]} 30.
Nc3 {[%clk 00:20:06]} {[%emt 00:01:15]} Qb6 {[%clk 00:07:13]} {[%emt 00:01:50]}
31. Qxb6 {[%clk 00:18:25]} {[%emt 00:02:11]} axb6 {[%clk 00:07:35]} {[%emt
00:00:08]} 32. Nxc6 {[%clk 00:18:17]} {[%emt 00:00:37]} Bb7 {[%clk 00:07:39]}
{[%emt 00:00:27]} 33. Nb4 {[%clk 00:12:57]} {[%emt 00:05:50]} d4 {[%clk
00:08:02]} {[%emt 00:00:07]} 34. Rhe1 {[%clk 00:13:15]} {[%emt 00:00:11]} dxc3
{[%clk 00:08:13]} {[%emt 00:00:19]} 35. Rxe6+ {[%clk 00:13:28]} Kf7 {[%clk
00:06:58]} {[%emt 00:02:02]} 36. Rxd6 {[%clk 00:13:48]} {[%emt 00:00:10]} cxd2+
{[%clk 00:07:22]} {[%emt 00:00:06]} 37. R1xd2 {[%clk 00:13:59]} {[%emt
00:00:18]} Bh6 {[%clk 00:07:20]} {[%emt 00:00:33]} 38. f4 {[%clk 00:13:27]}
{[%emt 00:01:03]} Bxf4 {[%clk 00:07:27]} {[%emt 00:00:23]} 39. Rd7+ {[%clk
00:13:52]} {[%emt 00:00:04]} Kg8 {[%clk 00:07:46]} {[%emt 00:00:10]} 40. Rxb7
{[%clk 00:14:09]} {[%emt 00:00:14]} Bh6 {[%clk 00:06:40]} {[%emt 00:01:37]} 41.
Kd1 {[%clk 00:13:34]} {[%emt 00:01:04]} Rae8 {[%clk 00:03:49]} {[%emt
00:03:21]} 42. c4 {[%clk 00:10:34]} {[%emt 00:03:30]} Rf1+ {[%clk 00:02:20]}
{[%emt 00:01:59]} 43. Kc2 {[%clk 00:10:55]} {[%emt 00:00:09]} Bxd2 {[%clk
00:02:46]} {[%emt 00:00:05]} 44. Kxd2 {[%clk 00:11:16]} {[%emt 00:00:09]} Re4
{[%clk 00:30:00]} {[%emt 00:02:45]} 45. Kc3 {[%clk 00:31:42]} {[%emt 00:10:05]}
Rc1+ {[%clk 00:29:59]} {[%emt 00:01:00]} 46. Kb3 {[%clk 00:32:06]} {[%emt
00:00:06]} Re3+ {[%clk 00:29:02]} {[%emt 00:01:27]} 47. Ka4 {[%clk 00:32:29]}
{[%emt 00:00:07]} Rxc4 {[%clk 00:29:07]} {[%emt 00:00:26]} 48. Rxb6 {[%clk
00:32:54]} {[%emt 00:00:05]} Rxg4 {[%clk 00:29:19]} {[%emt 00:00:17]} 49. Kb5
{[%clk 00:32:21]} {[%emt 00:01:03]} Rg2 {[%clk 00:27:07]} {[%emt 00:02:43]} 50.
b3 {[%clk 00:27:48]} {[%emt 00:05:03]} Rxh2 {[%clk 00:27:27]} {[%emt 00:00:10]}
51. Rd6 {[%clk 00:26:53]} {[%emt 00:01:24]} Rg2 {[%clk 00:26:08]} {[%emt
00:01:50]} 52. Nd5 {[%clk 00:26:37]} {[%emt 00:00:46]} Rf3 {[%clk 00:25:06]}
{[%emt 00:01:32]} 53. a4 {[%clk 00:25:04]} {[%emt 00:02:03]} Rxb3+ {[%clk
00:25:08]} {[%emt 00:00:28]} 54. Kc6 {[%clk 00:25:04]} {[%emt 00:00:29]} Rc2+
{[%clk 00:24:57]} {[%emt 00:00:40]} 55. Kd7 {[%clk 00:25:21]} {[%emt 00:00:14]}
Rb7+ {[%clk 00:24:55]} {[%emt 00:00:33]} 56. Kd8 {[%clk 00:24:35]} {[%emt
00:01:15]} Rf2 {[%clk 00:24:34]} {[%emt 00:00:51]} 57. Nf6 {[%clk 00:24:12]}
{[%emt 00:00:54]} Kg7 {[%clk 00:24:15]} {[%emt 00:00:49]} 58. Nd7 {[%clk
00:24:33]} {[%emt 00:00:09]} Ra2 {[%clk 00:23:27]} {[%emt 00:01:17]} 59. Nc5
{[%clk 00:24:55]} {[%emt 00:00:09]} Ra7 {[%clk 00:23:39]} {[%emt 00:00:17]} 60.
Rd4 {[%clk 00:25:15]} {[%emt 00:00:10]} Ra5 {[%clk 00:23:09]} {[%emt 00:01:00]}
61. Rc4 {[%clk 00:25:33]} {[%emt 00:00:12]} Ra7 {[%clk 00:21:43]} {[%emt
00:01:57]} 62. Rf4 {[%clk 00:25:04]} {[%emt 00:00:58]} Re2 {[%clk 00:21:00]}
{[%emt 00:01:13]} 63. Rf1 {[%clk 00:25:04]} {[%emt 00:00:30]} Ra5 {[%clk
00:20:01]} {[%emt 00:01:30]} 64. Rc1 {[%clk 00:25:12]} {[%emt 00:00:21]} h5
{[%clk 00:20:06]} {[%emt 00:00:26]} 65. Kc7 {[%clk 00:25:35]} {[%emt 00:00:06]}
Re5 {[%clk 00:19:08]} {[%emt 00:01:28]} 66. Nd7 {[%clk 00:25:43]} {[%emt
00:00:22]} Re6 {[%clk 00:18:53]} {[%emt 00:00:45]} 67. Rc4 {[%clk 00:26:04]}
{[%emt 00:00:09]} Ra7+ {[%clk 00:18:54]} {[%emt 00:00:29]} 68. Kd8 {[%clk
00:26:21]} {[%emt 00:00:14]} Rd6 {[%clk 00:19:03]} {[%emt 00:00:21]} 69. Rc7
{[%clk 00:26:34]} {[%emt 00:00:17]} Rxc7 {[%clk 00:18:56]} {[%emt 00:00:37]} 70.
Kxc7 {[%clk 00:26:56]} {[%emt 00:00:07]} Rd1 {[%clk 00:19:06]} {[%emt
00:00:20]} 71. a5 {[%clk 00:27:19]} {[%emt 00:00:08]} Ra1 {[%clk 00:19:18]}
{[%emt 00:00:18]} 72. Kb6 {[%clk 00:27:43]} {[%emt 00:00:05]} h4 {[%clk
00:19:24]} {[%emt 00:00:24]} 73. Ne5 {[%clk 00:28:08]} {[%emt 00:00:05]} Kf6
{[%clk 00:18:37]} {[%emt 00:01:17]} 74. Nf3 {[%clk 00:28:31]} {[%emt 00:00:07]}
g5 {[%clk 00:18:37]} {[%emt 00:00:30]} 75. a6 {[%clk 00:28:55]} {[%emt
00:00:07]} Kf5 {[%clk 00:18:52]} {[%emt 00:00:15]} 76. Nd4+ {[%clk 00:28:37]}
{[%emt 00:00:48]} Kg4 {[%clk 00:18:49]} {[%emt 00:00:32]} 77. a7 {[%clk
00:28:24]} {[%emt 00:00:43]} h3 {[%clk 00:19:00]} {[%emt 00:00:19]} 78. Nb3
{[%clk 00:28:49]} {[%emt 00:00:06]} Rxa7 {[%clk 00:19:06]} {[%emt 00:00:24]}
0-1

[Event "NJSK 2026 Jeugd B"]
[Site "Helmond, Netherlands"]
[Date "2026.04.29"]
[Round "5.9"]
[White "Van Haaften, Jelle"]
[Black "Woldhuis, Marnik"]
[Result "1/2-1/2"]
[TimeControl "90min/40moves + 30min + 30sec/move"]
[WhiteTitle "-"]
[BlackTitle "-"]
[WhiteFideId "1096281"]
[BlackFideId "1087096"]
[WhiteElo "1882"]
[BlackElo "1939"]

1. d4 {[%clk 01:30:56]} {[%emt 00:00:03]} Nf6 {[%clk 01:30:57]} {[%emt
00:00:04]} 2. c4 {[%clk 01:31:21]} {[%emt 00:00:06]} g6 {[%clk 01:31:24]}
{[%emt 00:00:03]} 3. Nc3 {[%clk 01:31:45]} {[%emt 00:00:06]} d5 {[%clk
01:31:51]} {[%emt 00:00:04]} 4. cxd5 {[%clk 01:31:29]} {[%emt 00:00:45]} Nxd5
{[%clk 01:32:14]} {[%emt 00:00:07]} 5. e4 {[%clk 01:31:54]} {[%emt 00:00:04]}
Nxc3 {[%clk 01:32:39]} {[%emt 00:00:06]} 6. bxc3 {[%clk 01:32:19]} {[%emt
00:00:04]} Bg7 {[%clk 01:33:03]} {[%emt 00:00:06]} 7. Nf3 {[%clk 01:30:50]}
{[%emt 00:02:00]} O-O {[%clk 01:28:32]} {[%emt 00:05:01]} 8. Be2 {[%clk
01:23:49]} {[%emt 00:07:30]} b6 {[%clk 01:22:40]} {[%emt 00:06:22]} 9. O-O
{[%clk 01:16:53]} {[%emt 00:07:25]} c5 {[%clk 01:18:47]} {[%emt 00:04:24]} 10.
Be3 {[%clk 01:05:50]} {[%emt 00:11:33]} Bb7 {[%clk 01:13:48]} {[%emt 00:05:29]}
11. e5 {[%clk 00:58:02]} {[%emt 00:08:18]} Nc6 {[%clk 01:04:37]} {[%emt
00:09:41]} 12. Qb3 {[%clk 00:47:40]} {[%emt 00:10:53]} Qc7 {[%clk 01:03:59]}
{[%emt 00:01:08]} 13. e6 {[%clk 00:45:11]} {[%emt 00:02:56]} f5 {[%clk
00:50:16]} {[%emt 00:14:14]} 14. dxc5 {[%clk 00:41:53]} {[%emt 00:03:48]} bxc5
{[%clk 00:50:30]} {[%emt 00:00:16]} 15. Rad1 {[%clk 00:35:49]} {[%emt
00:06:36]} Rad8 {[%clk 00:45:18]} {[%emt 00:05:42]} 16. Rd7 {[%clk 00:33:49]}
{[%emt 00:02:30]} Rxd7 {[%clk 00:45:28]} {[%emt 00:00:21]} 17. exd7+ {[%clk
00:34:15]} {[%emt 00:00:03]} Kh8 {[%clk 00:45:48]} {[%emt 00:00:09]} 18. Ng5
{[%clk 00:34:05]} {[%emt 00:00:41]} Nd8 {[%clk 00:38:12]} {[%emt 00:08:06]} 19.
Ne6 {[%clk 00:18:04]} {[%emt 00:16:31]} Nxe6 {[%clk 00:31:10]} {[%emt
00:07:32]} 20. Qxe6 {[%clk 00:18:29]} {[%emt 00:00:04]} Qc6 {[%clk 00:31:39]}
{[%emt 00:00:02]} 21. Qxc6 {[%clk 00:18:30]} {[%emt 00:00:29]} Bxc6 {[%clk
00:32:06]} {[%emt 00:00:03]} 22. Rd1 {[%clk 00:15:59]} {[%emt 00:03:01]} Rd8
{[%clk 00:28:09]} {[%emt 00:04:27]} 23. Bxc5 {[%clk 00:14:08]} {[%emt
00:02:19]} Bxc3 {[%clk 00:28:35]} {[%emt 00:00:07]} 24. Bxa7 {[%clk 00:06:03]}
{[%emt 00:08:35]} Rxd7 {[%clk 00:28:51]} {[%emt 00:00:13]} 25. Rxd7 {[%clk
00:06:19]} {[%emt 00:00:13]} Bxd7 {[%clk 00:29:15]} {[%emt 00:00:07]} 26. f3
{[%clk 00:05:45]} {[%emt 00:01:03]} Kg7 {[%clk 00:27:12]} {[%emt 00:02:34]} 27.
Kf2 {[%clk 00:05:44]} {[%emt 00:00:32]} Kf6 {[%clk 00:26:38]} {[%emt 00:01:03]}
28. Ke3 {[%clk 00:05:29]} {[%emt 00:00:45]} e5 {[%clk 00:26:48]} {[%emt
00:00:19]} 29. f4 {[%clk 00:03:02]} {[%emt 00:02:57]} exf4+ {[%clk 00:24:09]}
{[%emt 00:03:10]} 30. Kxf4 {[%clk 00:02:32]} {[%emt 00:01:01]} Be5+ {[%clk
00:24:11]} {[%emt 00:00:27]} 31. Kf3 {[%clk 00:02:52]} {[%emt 00:00:10]} Bxh2
{[%clk 00:23:16]} {[%emt 00:01:24]} 32. g3 {[%clk 00:03:06]} {[%emt 00:00:17]}
Bc6+ {[%clk 00:23:42]} {[%emt 00:00:04]} 33. Kf2 {[%clk 00:03:31]} {[%emt
00:00:06]} f4 {[%clk 00:23:36]} {[%emt 00:00:35]} 34. gxf4 {[%clk 00:01:48]}
{[%emt 00:02:13]} Bxf4 {[%clk 00:23:51]} {[%emt 00:00:15]} 35. Bf3 {[%clk
00:01:42]} {[%emt 00:00:36]} Bxf3 {[%clk 00:22:03]} {[%emt 00:02:18]} 36. Kxf3
{[%clk 00:02:11]} {[%emt 00:00:02]} Bd6 {[%clk 00:22:21]} {[%emt 00:00:12]} 37.
Be3 {[%clk 00:01:59]} {[%emt 00:00:41]} Ba3 {[%clk 00:22:31]} {[%emt 00:00:21]}
38. Kg4 {[%clk 00:02:15]} {[%emt 00:00:13]} h5+ {[%clk 00:22:49]} {[%emt
00:00:12]} 39. Kh4 {[%clk 00:02:42]} {[%emt 00:00:03]} Kf5 {[%clk 00:23:10]}
{[%emt 00:00:09]} 40. Bd2 {[%clk 00:01:36]} {[%emt 00:01:35]} Be7+ {[%clk
00:23:33]} {[%emt 00:00:08]} 41. Kh3 {[%clk 00:01:46]} {[%emt 00:00:19]} Ba3
{[%clk 00:22:56]} {[%emt 00:01:07]} 42. Kh4 {[%clk 00:01:46]} {[%emt 00:00:29]}
Ke4 {[%clk 00:20:37]} {[%emt 00:02:50]} 43. Bg5 {[%clk 00:13:05]} {[%emt
00:19:11]} Bb4 {[%clk 00:33:53]} {[%emt 00:17:14]} 44. Bd8 {[%clk 00:11:54]}
{[%emt 00:01:41]} Ba3 {[%clk 00:34:01]} {[%emt 00:00:22]} 45. Kg5 {[%clk
00:11:29]} {[%emt 00:00:55]} Kf3 {[%clk 00:34:17]} {[%emt 00:00:14]} 1/2-1/2

[Event "NJSK 2026 Jeugd B"]
[Site "Helmond, Netherlands"]
[Date "2026.04.29"]
[Round "5.10"]
[White "Yantur, Arda"]
[Black "Roebers, Bregje"]
[Result "1/2-1/2"]
[TimeControl "90min/40moves + 30min + 30sec/move"]
[WhiteTitle "-"]
[BlackTitle "-"]
[WhiteFideId "40102041"]
[BlackFideId "1085174"]
[WhiteElo "1750"]
[BlackElo "1945"]

1. e4 {[%clk 01:30:57]} {[%emt 00:00:03]} c5 {[%clk 01:30:48]} {[%emt
00:00:13]} 2. c3 {[%clk 01:31:18]} {[%emt 00:00:09]} e6 {[%clk 01:30:38]}
{[%emt 00:00:39]} 3. d4 {[%clk 01:31:33]} {[%emt 00:00:15]} d5 {[%clk
01:30:20]} {[%emt 00:00:48]} 4. exd5 {[%clk 01:31:55]} {[%emt 00:00:08]} exd5
{[%clk 01:30:29]} {[%emt 00:00:22]} 5. Be3 {[%clk 01:31:41]} {[%emt 00:00:43]}
cxd4 {[%clk 01:29:27]} {[%emt 00:01:32]} 6. Bxd4 {[%clk 01:31:56]} {[%emt
00:00:14]} Nc6 {[%clk 01:28:57]} {[%emt 00:01:01]} 7. Nf3 {[%clk 01:28:57]}
{[%emt 00:03:28]} Nf6 {[%clk 01:25:24]} {[%emt 00:04:04]} 8. Bxf6 {[%clk
01:24:54]} {[%emt 00:04:33]} Qxf6 {[%clk 01:25:43]} {[%emt 00:00:11]} 9. Qxd5
{[%clk 01:24:08]} {[%emt 00:01:16]} Bd6 {[%clk 01:23:55]} {[%emt 00:02:18]} 10.
Nbd2 {[%clk 01:18:06]} {[%emt 00:06:32]} O-O {[%clk 01:09:02]} {[%emt
00:15:24]} 11. Bd3 {[%clk 01:00:19]} {[%emt 00:18:16]} Re8+ {[%clk 00:57:46]}
{[%emt 00:11:45]} 12. Ne4 {[%clk 00:58:28]} {[%emt 00:02:21]} Bf5 {[%clk
00:54:25]} {[%emt 00:03:51]} 13. O-O {[%clk 00:52:25]} {[%emt 00:06:34]} Bxe4
{[%clk 00:49:31]} {[%emt 00:05:24]} 14. Bxe4 {[%clk 00:51:56]} {[%emt
00:00:59]} Qf4 {[%clk 00:26:13]} {[%emt 00:23:49]} 15. Rfe1 {[%clk 00:37:52]}
{[%emt 00:14:33]} Qh6 {[%clk 00:19:33]} {[%emt 00:07:10]} 16. g3 {[%clk
00:20:04]} {[%emt 00:18:18]} Qf6 {[%clk 00:15:21]} {[%emt 00:04:42]} 17. Rad1
{[%clk 00:19:11]} {[%emt 00:01:24]} Bc7 {[%clk 00:12:43]} {[%emt 00:03:08]} 18.
Qd3 {[%clk 00:11:49]} {[%emt 00:07:51]} g6 {[%clk 00:11:34]} {[%emt 00:01:39]}
19. Nd4 {[%clk 00:10:54]} {[%emt 00:01:25]} Nxd4 {[%clk 00:06:25]} {[%emt
00:05:39]} 20. Qxd4 {[%clk 00:08:00]} {[%emt 00:03:25]} Qxd4 {[%clk 00:06:05]}
{[%emt 00:00:49]} 21. Rxd4 {[%clk 00:07:03]} {[%emt 00:01:28]} Bb6 {[%clk
00:05:04]} {[%emt 00:01:31]} 22. Rdd1 {[%clk 00:06:08]} {[%emt 00:01:24]} Rad8
{[%clk 00:03:57]} {[%emt 00:01:37]} 23. Bf3 {[%clk 00:06:26]} {[%emt 00:00:13]}
Rxe1+ {[%clk 00:03:38]} {[%emt 00:00:49]} 24. Rxe1 {[%clk 00:06:54]} Rd2 {[%clk
00:03:53]} {[%emt 00:00:15]} 25. Re2 {[%clk 00:07:10]} {[%emt 00:00:14]} Rxe2
{[%clk 00:04:01]} {[%emt 00:00:22]} 26. Bxe2 {[%clk 00:07:37]} {[%emt
00:00:04]} Bc7 {[%clk 00:04:16]} {[%emt 00:00:15]} 27. Kg2 {[%clk 00:07:50]}
{[%emt 00:00:16]} Kf8 {[%clk 00:04:11]} {[%emt 00:00:36]} 28. Kf3 {[%clk
00:08:01]} {[%emt 00:00:18]} Ke7 {[%clk 00:03:58]} {[%emt 00:00:43]} 29. Ke4
{[%clk 00:07:48]} {[%emt 00:00:43]} Kd6 {[%clk 00:02:07]} {[%emt 00:02:22]} 30.
g4 {[%clk 00:06:11]} {[%emt 00:02:07]} Kc6 {[%clk 00:01:17]} {[%emt 00:01:19]}
31. h3 {[%clk 00:06:36]} {[%emt 00:00:05]} f6 {[%clk 00:01:37]} {[%emt
00:00:11]} 32. f4 {[%clk 00:06:40]} {[%emt 00:00:25]} h6 {[%clk 00:01:34]}
{[%emt 00:00:33]} 33. Bd3 {[%clk 00:02:42]} {[%emt 00:04:28]} g5 {[%clk
00:01:03]} {[%emt 00:01:02]} 34. fxg5 {[%clk 00:02:36]} {[%emt 00:00:36]} hxg5
{[%clk 00:01:13]} {[%emt 00:00:20]} 35. Bc4 {[%clk 00:01:04]} {[%emt 00:02:02]}
Kd6 {[%clk 00:01:26]} {[%emt 00:00:17]} 36. Bd5 {[%clk 00:00:39]} {[%emt
00:00:55]} b6 {[%clk 00:01:38]} {[%emt 00:00:17]} 37. b4 {[%clk 00:00:58]}
{[%emt 00:00:12]} a5 {[%clk 00:01:54]} {[%emt 00:00:13]} 38. bxa5 {[%clk
00:00:42]} {[%emt 00:00:47]} bxa5 {[%clk 00:02:19]} {[%emt 00:00:05]} 39. c4
{[%clk 00:01:03]} {[%emt 00:00:09]} Bb6 {[%clk 00:02:44]} {[%emt 00:00:06]} 40.
Kd3 {[%clk 00:00:33]} {[%emt 00:00:59]} Bc5 {[%clk 00:02:48]} {[%emt 00:00:25]}
41. Kc3 {[%clk 00:00:52]} {[%emt 00:00:12]} Bb4+ {[%clk 00:03:10]} {[%emt
00:00:08]} 42. Kb3 {[%clk 00:01:06]} {[%emt 00:00:16]} Bd2 {[%clk 00:03:27]}
{[%emt 00:00:13]} 43. Ka4 {[%clk 00:01:02]} {[%emt 00:00:34]} Kc5 {[%clk
00:03:51]} {[%emt 00:00:05]} 44. Be6 {[%clk 00:01:18]} {[%emt 00:00:14]} Bc3
{[%clk 00:04:09]} {[%emt 00:00:12]} 45. Kb3 {[%clk 00:01:41]} {[%emt 00:00:08]}
Be1 {[%clk 00:04:31]} {[%emt 00:00:08]} 46. Kc2 {[%clk 00:01:48]} {[%emt
00:00:23]} Bg3 {[%clk 00:04:54]} {[%emt 00:00:06]} 47. Kd3 {[%clk 00:01:52]}
{[%emt 00:00:27]} Be5 {[%clk 00:05:17]} {[%emt 00:00:07]} 48. Ke4 {[%clk
00:01:05]} {[%emt 00:01:17]} Bc3 {[%clk 00:05:40]} {[%emt 00:00:07]} 49. Bd5
{[%clk 00:30:05]} {[%emt 00:01:30]} Bb2 {[%clk 00:36:00]} {[%emt 00:00:10]} 50.
Kf3 {[%clk 00:30:17]} {[%emt 00:00:18]} Bc3 {[%clk 00:36:18]} {[%emt 00:00:12]}
51. Kg3 {[%clk 00:26:08]} {[%emt 00:04:39]} Bb2 {[%clk 00:36:31]} {[%emt
00:00:16]} 52. h4 {[%clk 00:26:14]} {[%emt 00:00:24]} gxh4+ {[%clk 00:36:55]}
{[%emt 00:00:06]} 53. Kxh4 {[%clk 00:26:34]} {[%emt 00:00:10]} Bc3 {[%clk
00:37:21]} {[%emt 00:00:05]} 54. Kh5 {[%clk 00:26:12]} {[%emt 00:00:52]} Bb2
{[%clk 00:37:43]} {[%emt 00:00:08]} 55. Kg6 {[%clk 00:26:35]} {[%emt 00:00:06]}
Be5 {[%clk 00:38:03]} {[%emt 00:00:10]} 56. Bf7 {[%clk 00:26:42]} {[%emt
00:00:23]} Bc3 {[%clk 00:38:27]} {[%emt 00:00:07]} 57. Kf5 {[%clk 00:27:08]}
{[%emt 00:00:03]} Bb2 {[%clk 00:38:49]} {[%emt 00:00:08]} 58. Bd5 {[%clk
00:27:31]} {[%emt 00:00:07]} Bc3 {[%clk 00:39:14]} {[%emt 00:00:06]} 59. Ke6
{[%clk 00:26:59]} {[%emt 00:01:02]} Bb2 {[%clk 00:39:38]} {[%emt 00:00:06]} 60.
Kd7 {[%clk 00:26:03]} {[%emt 00:01:25]} Bc3 {[%clk 00:40:02]} {[%emt 00:00:07]}
61. Ke7 {[%clk 00:25:32]} {[%emt 00:01:01]} Bd4 {[%clk 00:40:21]} {[%emt
00:00:11]} 62. Ke6 {[%clk 00:25:51]} {[%emt 00:00:11]} Bc3 {[%clk 00:40:39]}
{[%emt 00:00:12]} 63. Kf5 {[%clk 00:26:16]} {[%emt 00:00:05]} Bb2 {[%clk
00:41:04]} {[%emt 00:00:05]} 64. g5 {[%clk 00:26:30]} {[%emt 00:00:16]} fxg5
{[%clk 00:41:28]} {[%emt 00:00:05]} 65. Kxg5 {[%clk 00:26:59]} {[%emt
00:00:01]} Bc3 {[%clk 00:41:50]} {[%emt 00:00:09]} 66. Kf5 {[%clk 00:27:13]}
{[%emt 00:00:15]} Bh8 {[%clk 00:42:07]} {[%emt 00:00:13]} 67. Ke4 {[%clk
00:27:39]} {[%emt 00:00:05]} Ba1 {[%clk 00:42:27]} {[%emt 00:00:10]} 68. Kd3
{[%clk 00:28:03]} {[%emt 00:00:05]} Bf6 {[%clk 00:42:51]} {[%emt 00:00:07]} 69.
Kc2 {[%clk 00:28:14]} {[%emt 00:00:18]} Bh4 {[%clk 00:43:14]} {[%emt 00:00:07]}
70. Kb3 {[%clk 00:28:25]} {[%emt 00:00:19]} Be1 {[%clk 00:43:37]} {[%emt
00:00:07]} 71. Ka4 {[%clk 00:28:27]} {[%emt 00:00:29]} Bb4 {[%clk 00:44:00]}
{[%emt 00:00:06]} 72. a3 {[%clk 00:28:53]} {[%emt 00:00:04]} Bd2 {[%clk
00:44:25]} {[%emt 00:00:06]} 73. Kb3 {[%clk 00:29:16]} {[%emt 00:00:07]} Bc1
{[%clk 00:44:47]} {[%emt 00:00:07]} 74. Ka2 {[%clk 00:29:14]} {[%emt 00:00:32]}
Be3 {[%clk 00:45:10]} {[%emt 00:00:07]} 75. Kb1 {[%clk 00:27:34]} {[%emt
00:02:09]} Bg5 {[%clk 00:45:31]} {[%emt 00:00:10]} 76. Kc2 {[%clk 00:27:08]}
{[%emt 00:00:57]} 1/2-1/2

[Event "NJSK 2026 Jeugd B"]
[Site "Helmond, Netherlands"]
[Date "2026.04.30"]
[Round "6.1"]
[White "Aravindhan, Achyuth"]
[Black "Chua, Ethan"]
[Result "1/2-1/2"]
[TimeControl "90min/40moves + 30min + 30sec/move"]
[WhiteTitle "-"]
[BlackTitle "-"]
[WhiteFideId "1084216"]
[BlackFideId "1089250"]
[WhiteElo "2277"]
[BlackElo "2168"]

1. e4 {[%clk 01:30:59]} e5 {[%clk 01:30:44]} {[%emt 00:00:17]} 2. Nf3 {[%clk
01:31:23]} {[%emt 00:00:06]} Nc6 {[%clk 01:31:10]} {[%emt 00:00:04]} 3. Bc4
{[%clk 01:31:42]} {[%emt 00:00:12]} Bc5 {[%clk 01:31:36]} {[%emt 00:00:05]} 4.
d3 {[%clk 01:31:55]} {[%emt 00:00:15]} Nf6 {[%clk 01:31:52]} {[%emt 00:00:14]}
5. a4 {[%clk 01:30:43]} {[%emt 00:01:41]} O-O {[%clk 01:29:25]} {[%emt
00:02:57]} 6. a5 {[%clk 01:31:02]} {[%emt 00:00:11]} a6 {[%clk 01:29:48]}
{[%emt 00:00:08]} 7. O-O {[%clk 01:31:12]} {[%emt 00:00:19]} d6 {[%clk
01:28:34]} {[%emt 00:01:45]} 8. c3 {[%clk 01:31:33]} {[%emt 00:00:09]} Ba7
{[%clk 01:26:12]} {[%emt 00:02:53]} 9. Be3 {[%clk 01:31:34]} {[%emt 00:00:28]}
Be6 {[%clk 01:24:05]} {[%emt 00:02:36]} 10. Bxe6 {[%clk 01:11:04]} {[%emt
00:20:58]} fxe6 {[%clk 01:24:31]} {[%emt 00:00:05]} 11. Bxa7 {[%clk 01:11:10]}
{[%emt 00:00:25]} Rxa7 {[%clk 01:24:58]} {[%emt 00:00:03]} 12. Nbd2 {[%clk
01:11:22]} {[%emt 00:00:18]} Nh5 {[%clk 01:20:02]} {[%emt 00:05:26]} 13. d4
{[%clk 01:06:40]} {[%emt 00:05:12]} Qf6 {[%clk 01:19:28]} {[%emt 00:01:04]} 14.
Nc4 {[%clk 00:47:01]} {[%emt 00:20:09]} Raa8 {[%clk 01:16:50]} {[%emt
00:03:07]} 15. Ne3 {[%clk 00:37:30]} {[%emt 00:10:02]} Nf4 {[%clk 01:11:10]}
{[%emt 00:06:08]} 16. g3 {[%clk 00:35:17]} {[%emt 00:02:44]} Qg6 {[%clk
00:59:35]} {[%emt 00:12:04]} 17. Nh4 {[%clk 00:26:53]} {[%emt 00:08:54]} Nh3+
{[%clk 00:58:53]} {[%emt 00:01:12]} 18. Kg2 {[%clk 00:26:55]} {[%emt 00:00:28]}
Nf4+ {[%clk 00:57:40]} {[%emt 00:01:43]} 1/2-1/2